bitfinex/quotes_ETHUSD_20230904
["timestamp","ask_amount","ask_price","bid_price","bid_amount"]
[1693793982194,0.00338511,1633.2,1633.1,3.08185404]
[1693793982398,0.30978551,1633.2,1633.1,3.08185404]
[1693793982600,0.00338511,1633.2,1633.1,3.08185404]
[1693793983304,6.67677263,1633.3,1633.1,3.08185404]
[1693793984071,0.30978551,1633.2,1633.1,3.08185404]
[1693793984402,0.00338511,1633.2,1633.1,3.08185404]
[1693793985078,6.67677263,1633.3,1633.1,3.08185404]
[1693793985402,0.3064004,1633.2,1633.1,3.08185404]
[1693793985800,6.67677263,1633.3,1633.1,3.08185404]
[1693793986172,0.30982743,1633.2,1633.1,3.08185404]
[1693793986504,0.00338638,1633.2,1633.1,3.08185404]
[1693793987104,6.67677263,1633.3,1633.1,3.08185404]
[1693793988191,0.30978551,1633.2,1633.1,3.08185404]
[1693793988670,0.00338511,1633.2,1633.1,3.08185404]
[1693793989203,6.67677263,1633.3,1633.1,3.08185404]
[1693793989673,0.3064004,1633.2,1633.1,3.08185404]
[1693793990074,6.67677263,1633.3,1633.1,3.08185404]
[1693793990273,0.3064004,1633.2,1633.1,3.08185404]
[1693793990808,6.67677263,1633.3,1633.1,3.08185404]
[1693793990993,0.3064004,1633.2,1633.1,3.08185404]
[1693793991295,0.30978551,1633.2,1633.1,3.08185404]
[1693793991495,0.00338511,1633.2,1633.1,3.08185404]
[1693793992208,6.67677263,1633.3,1633.1,3.08185404]
[1693793992395,0.3064004,1633.2,1633.1,3.08185404]
[1693793992815,6.67677263,1633.3,1633.1,3.08185404]
[1693793993101,0.3064004,1633.2,1633.1,3.08185404]
[1693793993285,0.30978551,1633.2,1633.1,3.08185404]
[1693793993485,0.00338511,1633.2,1633.1,3.08185404]
[1693793994106,6.67677263,1633.3,1633.1,3.08185404]
[1693793994593,0.3064004,1633.2,1633.1,3.08185404]
[1693793994907,6.67677263,1633.3,1633.1,3.08185404]
[1693793995201,0.00338511,1633.2,1633.1,3.08185404]
[1693793995407,0.30978551,1633.2,1633.1,3.08185404]
[1693793995608,0.00338511,1633.2,1633.1,3.08185404]
[1693793996105,6.67677263,1633.3,1633.1,3.08185404]
[1693793996768,0.3064004,1633.2,1633.1,3.08185404]
[1693793997271,6.67677263,1633.3,1633.1,3.08185404]
[1693793997709,0.3064004,1633.2,1633.1,3.08185404]
[1693793998110,6.67677263,1633.3,1633.1,3.08185404]
[1693793998410,0.3064004,1633.2,1633.1,3.08185404]
[1693793998906,3.74246912,1633.3,1633.1,3.08185404]
[1693793999611,0.3064004,1633.2,1633.1,3.08185404]
[1693793999817,3.74246912,1633.3,1633.1,3.77073374]
[1693794000316,0.30978551,1633.2,1633.1,3.77073374]
[1693794000513,0.00338511,1633.2,1633.1,3.77073374]
[1693794001202,3.74246912,1633.3,1633.1,3.77073374]
[1693794001616,0.3064004,1633.2,1633.1,3.77073374]
[1693794001814,0.3064004,1633.2,1633.1,4.85773374]
[1693794001994,3.74246912,1633.3,1633.1,4.85773374]
[1693794005618,3.1,1633.3,1633.1,4.85773374]
[1693794012740,3.05,1633.3,1633.1,4.85773374]
[1693794021507,3.49387263,1633.4,1633.1,4.85773374]
[1693794021908,0.30680613,1633.3,1633.1,4.85773374]
[1693794022309,3.49387263,1633.4,1633.1,4.85773374]
[1693794022743,0.3065573,1633.2,1633.1,4.85773374]
[1693794022938,3.49387263,1633.4,1633.1,4.85773374]
[1693794023245,0.00338511,1633.2,1633.1,4.16885404]
[1693794024343,3.49387263,1633.4,1633.1,4.16885404]
[1693794024710,0.30680613,1633.3,1633.2,3.08185404]
[1693794025146,0.31019904,1633.3,1633.2,3.08185404]
[1693794031145,3.31019904,1633.3,1633.2,3.08185404]
[1693794035856,2.5724377,1633.3,1633.2,3.08185404]
[1693794036149,2.57570011,1633.3,1633.2,3.08185404]
[1693794038657,2.17570011,1633.3,1633.2,3.08185404]
[1693794039151,3.23920372,1633.3,1633.2,3.08185404]
[1693794040257,3.88167284,1633.3,1633.2,3.08185404]
[1693794044956,3.48167284,1633.3,1633.2,3.08185404]
[1693794045161,1.9714738,1633.3,1633.2,3.08185404]
[1693794055481,3.8714738,1633.3,1633.2,3.08185404]
[1693794055983,1.9714738,1633.3,1633.2,3.08185404]
[1693794062884,1.32900468,1633.3,1633.2,3.08185404]
[1693794063096,1.9714738,1633.3,1633.2,3.08185404]
[1693794063399,1.32900468,1633.3,1633.2,3.08185404]
[1693794063889,1.9714738,1633.3,1633.2,3.08185404]
[1693794064492,0.26550107,1633.3,1633.2,3.08185404]
[1693794065066,1.32899201,1633.3,1633.2,3.08185404]
[1693794065694,0.26550107,1633.3,1633.2,3.08185404]
[1693794065889,1.32899261,1633.3,1633.2,3.08185404]
[1693794066092,0.26550107,1633.3,1633.2,3.08185404]
[1693794066779,1.76550107,1633.3,1633.2,3.08185404]
[1693794069802,2.82899401,1633.3,1633.2,3.08185404]
[1693794070600,1.76550107,1633.3,1633.2,3.08185404]
[1693794074510,1.76550107,1633.3,1633.2,3.49873944]
[1693794076505,1.76550107,1633.3,1633.2,4.58573944]
[1693794076883,1.76550107,1633.3,1633.2,5.22868235]
[1693794077084,1.76550107,1633.3,1633.2,10.28540735]
[1693794077384,1.5,1633.3,1633.2,15.28540735]
[1693794077580,0.64246912,1633.9,1633.2,16.59819124]
[1693794077780,3.49135831,1633.9,1633.7,3.08185404]
[1693794078001,1.7857,1633.9,1633.8,3.08185404]
[1693794078202,3.60187263,1634.0,1633.8,4.16885404]
[1693794078402,1.60617263,1634.0,1633.8,4.16885404]
[1693794078802,2.66932532,1634.0,1633.8,4.16885404]
[1693794078973,4.2640544,1634.0,1633.8,4.16885404]
[1693794079169,1.60617263,1634.0,1633.8,4.16885404]
[1693794079374,3.20090199,1634.0,1633.8,4.16885404]
[1693794079577,0.64246912,1634.0,1633.8,4.16885404]
[1693794079775,1.70559719,1634.0,1633.8,4.16885404]
[1693794080503,2.42816912,1634.1,1633.8,4.16885404]
[1693794081136,0.00363459,1634.0,1633.8,4.16885404]
[1693794081438,0.00363459,1634.0,1633.9,1.087]
[1693794081623,0.00363459,1634.0,1633.9,4.16885404]
[1693794081801,0.24486306,1634.0,1633.9,4.16885404]
[1693794088201,0.24486306,1634.0,1633.9,3.07954476]
[1693794117402,1.95043384,1634.0,1633.9,3.07954476]
[1693794117608,0.24486306,1634.0,1633.9,3.07954476]
[1693794117783,1.30796243,1634.0,1633.9,3.07954476]
[1693794118216,0.24486306,1634.0,1633.9,3.07954476]
[1693794118380,1.95042754,1634.0,1633.9,3.07954476]
[1693794119793,3.54506478,1634.0,1633.9,3.07954476]
[1693794120084,1.95042754,1634.0,1633.9,3.07954476]
[1693794120491,3.54506009,1634.0,1633.9,3.07954476]
[1693794121418,3.86629448,1634.0,1633.9,3.07954476]
[1693794121712,4.50808327,1634.0,1633.9,3.07954476]
[1693794122093,4.50703166,1634.0,1633.9,3.07954476]
[1693794122644,2.4911191,1634.0,1633.9,3.07954476]
[1693794122797,5.1488191,1634.0,1633.9,3.07954476]
[1693794123124,1.52843794,1634.0,1633.9,3.07954476]
[1693794123325,6.31230219,1634.0,1633.9,3.07954476]
[1693794123542,6.31230283,1634.0,1633.9,3.49619924]
[1693794123685,5.15010092,1634.0,1633.9,3.49619924]
[1693794124701,3.86652604,1634.0,1633.9,3.49619924]
[1693794127355,3.86652604,1634.0,1633.9,4.58319924]
[1693794128028,4.50909988,1634.0,1633.9,4.58319924]
[1693794128192,4.50546529,1634.0,1633.9,4.58319924]
[1693794128408,3.54150231,1634.0,1633.9,4.58319924]
[1693794128887,6.64150231,1634.0,1633.9,4.58319924]
[1693794129031,6.64150231,1634.0,1633.9,3.49619924]
[1693794131549,6.64150231,1634.0,1633.9,4.58319924]
[1693794131856,6.64150231,1634.0,1633.9,5.22437644]
[1693794131857,3.34122847,1634.0,1633.9,5.22437644]
[1693794132010,3.34122847,1634.0,1633.9,8.70437644]
[1693794132206,3.1,1634.0,1633.9,18.00737644]
[1693794132513,3.1,1634.0,1633.9,18.96914224]
[1693794132712,3.1,1634.0,1633.9,18.00737644]
[1693794135724,3.1,1634.0,1633.9,17.36619924]
[1693794137246,3.1,1634.0,1633.9,18.00737644]
[1693794137774,3.1,1634.0,1633.9,17.36619924]
[1693794145969,3.1,1634.0,1633.9,17.86065744]
[1693794150271,1.15816642,1634.0,1633.9,17.86065744]
[1693794153503,1.7918,1634.4,1634.3,3.08185404]
[1693794153648,2.59127384,1634.6,1634.3,3.39003944]
[1693794153948,2.59127384,1634.6,1634.4,3.08185404]
[1693794154256,0.74357384,1634.6,1634.4,3.08185404]
[1693794155497,0.101,1634.6,1634.4,3.08185404]
[1693794155696,0.74143283,1634.6,1634.4,3.08185404]
[1693794156393,1.70208208,1634.6,1634.4,3.08185404]
[1693794156778,0.74143283,1634.6,1634.4,3.08185404]
[1693794157697,1.70208208,1634.6,1634.4,3.08185404]
[1693794158387,0.74143283,1634.6,1634.4,3.08185404]
[1693794160787,0.74143283,1634.6,1634.5,3.08185404]
[1693794161001,1.80420488,1634.6,1634.5,3.08185404]
[1693794161307,3.39836296,1634.6,1634.5,3.08185404]
[1693794168219,4.35901221,1634.6,1634.5,3.08185404]
[1693794170540,3.71857938,1634.6,1634.5,3.08185404]
[1693794171306,4.35959578,1634.6,1634.5,3.08185404]
[1693794171643,3.71857938,1634.6,1634.5,3.08185404]
[1693794175537,4.99944505,1634.6,1634.5,3.08185404]
[1693794176551,6.16437131,1634.6,1634.5,3.08185404]
[1693794182150,5.00206564,1634.6,1634.5,3.08185404]
[1693794184791,3.50206564,1634.6,1634.5,3.08185404]
[1693794192180,2.22119997,1634.6,1634.5,3.08185404]
[1693794194544,1.7050033,1634.6,1634.5,4.47703944]
[1693794194758,1.06426984,1634.7,1634.5,4.47703944]
[1693794194759,0.74323125,1634.7,1634.5,3.39003944]
[1693794194955,4.36311949,1634.7,1634.6,3.08185404]
[1693794195184,3.39984965,1634.7,1634.6,3.08185404]
[1693794195379,3.39984965,1634.7,1634.6,3.42085798]
[1693794197282,3.39984965,1634.7,1634.6,3.08185404]
[1693794212093,4.36311949,1634.7,1634.6,3.08185404]
[1693794216282,3.72088824,1634.7,1634.2,32.857508]
[1693794216467,0.64162289,1634.5,1634.3,3.08185404]
[1693794216686,1.26122045,1634.5,1634.3,3.08185404]
[1693794216867,3.53935723,1634.6,1634.3,3.08185404]
[1693794220187,1.06278181,1634.5,1634.3,3.08185404]
[1693794220485,1.7044047,1634.5,1634.3,3.08185404]
[1693794249131,3.29858457,1634.5,1634.3,3.08185404]
[1693794253774,0.64197802,1634.5,1634.3,3.08185404]
[1693794253936,1.70475701,1634.5,1634.3,3.08185404]
[1693794254243,3.29892496,1634.5,1634.3,3.08185404]
[1693794254426,0.64197802,1634.5,1634.3,3.08185404]
[1693794254626,1.70475696,1634.5,1634.3,3.08185404]
[1693794254949,3.29892555,1634.5,1634.3,3.08185404]
[1693794256951,0.64197802,1634.5,1634.3,3.08185404]
[1693794257353,3.29887399,1634.5,1634.3,3.08185404]
[1693794257552,0.64197802,1634.5,1634.3,3.08185404]
[1693794257936,3.298871,1634.5,1634.3,3.08185404]
[1693794258138,0.64197802,1634.5,1634.3,3.08185404]
[1693794258644,3.29887103,1634.5,1634.3,3.08185404]
[1693794277986,3.29887103,1634.5,1634.3,3.58579944]
[1693794279391,3.29887103,1634.5,1634.3,3.08185404]
[1693794299812,4.26183806,1634.5,1634.3,3.08185404]
[1693794300008,3.29887103,1634.5,1634.3,3.08185404]
[1693794300216,0.64197802,1634.5,1634.3,3.08185404]
[1693794300620,3.29888666,1634.5,1634.3,3.08185404]
[1693794300817,2.35305602,1634.5,1634.3,3.08185404]
[1693794302787,1.60494505,1634.5,1634.3,3.08185404]
[1693794302982,4.26185323,1634.5,1634.3,3.08185404]
[1693794303186,1.60494505,1634.5,1634.3,3.08185404]
[1693794303397,4.26185293,1634.5,1634.3,3.08185404]
[1693794303701,1.60494505,1634.5,1634.3,3.08185404]
[1693794304136,4.26185275,1634.5,1634.3,3.08185404]
[1693794307425,0.64197802,1634.5,1634.3,3.08185404]
[1693794307717,3.29888129,1634.5,1634.3,3.08185404]
[1693794307923,0.64197802,1634.5,1634.3,3.08185404]
[1693794308528,3.2988799,1634.5,1634.3,3.08185404]
[1693794308842,0.64197802,1634.5,1634.3,3.08185404]
[1693794309119,3.29887971,1634.5,1634.3,3.08185404]
[1693794309303,0.64197802,1634.5,1634.3,3.08185404]
[1693794309534,1.70473845,1634.5,1634.3,3.08185404]
[1693794332372,1.70473845,1634.5,1634.4,0.42960578]
[1693794332523,3.29887351,1634.5,1634.4,3.51145982]
[1693794332719,3.29887351,1634.5,1634.4,3.08185404]
[1693794334661,4.04698317,1634.5,1634.4,3.08185404]
[1693794334847,4.36797218,1634.5,1634.4,3.08185404]
[1693794335524,5.01057345,1634.5,1634.4,3.08185404]
[1693794335725,4.36797218,1634.5,1634.4,3.08185404]
[1693794336046,5.01055315,1634.5,1634.4,3.08185404]
[1693794336837,5.01055315,1634.5,1634.4,3.50969057]
[1693794337048,5.01148264,1634.5,1634.4,3.50969057]
[1693794338526,3.40506731,1634.5,1634.4,0.42783653]
[1693794338727,6.81591845,1634.5,1634.4,0.42783653]
[1693794338928,8.42233378,1634.5,1634.0,32.3378]
[1693794339153,0.64245002,1634.3,1634.1,3.08185404]
[1693794339341,3.29955079,1634.3,1634.1,3.08185404]
[1693794339876,0.64245002,1634.3,1634.1,3.08185404]
[1693794340438,1.70532565,1634.3,1634.1,3.08185404]
[1693794340841,4.38935844,1634.4,1634.1,3.08185404]
[1693794341047,0.43893584,1634.3,1634.1,3.08185404]
[1693794341227,0.64245002,1634.3,1634.1,3.08185404]
[1693794341432,1.06287465,1634.3,1634.1,3.08185404]
[1693794341745,4.38935844,1634.4,1634.1,3.08185404]
[1693794344665,3.4256834,1634.4,1634.1,3.08185404]
[1693794351878,3.4256834,1634.4,1634.2,0.42809588]
[1693794352183,0.34256834,1634.3,1634.2,3.08185404]
[1693794357646,1.92601836,1634.4,1634.2,3.08185404]
[1693794363383,1.92601836,1634.4,1634.3,0.23459685]
[1693794363555,4.58321342,1634.4,1634.3,0.23459685]
[1693794363750,5.33713227,1634.4,1634.3,0.23459685]
[1693794364886,4.05356393,1634.4,1634.3,0.23459685]
[1693794366202,4.05356393,1634.4,1634.2,3.08185404]
[1693794366371,1.39636887,1634.4,1634.2,3.08185404]
[1693794366701,0.64245002,1634.4,1634.2,3.08185404]
[1693794366902,0.64245002,1634.4,1634.3,0.42845324]
[1693794367112,3.29964792,1634.4,1634.3,0.42845324]
[1693794374618,4.26332296,1634.4,1634.3,0.42845324]
[1693794377818,4.26290277,1634.4,1634.3,0.42845324]
[1693794378013,4.34964644,1634.4,1634.3,0.42845324]
[1693794378262,4.99168041,1634.4,1634.3,0.42845324]
[1693794378713,4.34964644,1634.4,1634.3,0.42845324]
[1693794383664,5.6347787,1634.4,1634.3,0.42845324]
[1693794388645,5.6347787,1634.4,1633.7,37.69624371]
[1693794388646,6.59882494,1634.4,1633.7,32.24812171]
[1693794388842,0.6426865,1634.0,1633.8,5.14115404]
[1693794389012,0.6426865,1634.1,1633.8,5.54740039]
[1693794390333,2.23724668,1634.1,1633.8,5.54740039]
[1693794390511,0.6426865,1634.1,1633.8,5.54740039]
[1693794391634,0.6426865,1634.0,1633.8,3.48810039]
[1693794392190,3.30041883,1634.0,1633.8,3.48810039]
[1693794392321,0.6426865,1634.0,1633.8,3.48810039]
[1693794392524,1.70581568,1634.0,1633.8,3.48810039]
[1693794392732,2.39766752,1634.0,1633.8,3.48810039]
[1693794392920,1.33453834,1634.0,1633.8,3.48810039]
[1693794395947,0.69185184,1634.0,1633.8,3.48810039]
[1693794397118,1.33453834,1634.0,1633.8,3.48810039]
[1693794397429,0.69185184,1634.0,1633.8,3.48810039]
[1693794398315,4.57001625,1634.1,1633.8,3.48810039]
[1693794399701,4.57001625,1634.1,1633.8,0.40624635]
[1693794402953,4.56531343,1634.1,1633.8,0.40624635]
[1693794403355,3.29877227,1634.0,1633.8,0.40624635]
[1693794403561,0.64080537,1634.0,1633.8,0.40624635]
[1693794403855,3.2987925,1634.0,1633.8,0.40624635]
[1693794404054,0.32987925,1633.9,1633.8,0.40624635]
[1693794404251,0.64080537,1634.0,1633.8,0.40624635]
[1693794404455,3.29879949,1634.0,1633.8,0.40624635]
[1693794404661,0.64080537,1634.0,1633.8,0.40624635]
[1693794404873,3.29879533,1634.0,1633.8,0.40624635]
[1693794405037,0.64080537,1634.0,1633.8,0.40624635]
[1693794405246,3.29880477,1634.0,1633.8,0.40624635]
[1693794405559,0.32988048,1633.9,1633.8,0.40624635]
[1693794405868,0.64080537,1634.0,1633.8,0.40624635]
[1693794406103,1.70400901,1634.0,1633.8,0.40624635]
[1693794406424,2.66521707,1634.0,1633.8,0.40624635]
[1693794406620,1.06320364,1633.9,1633.8,0.40624635]
[1693794406869,2.66521707,1634.0,1633.8,0.40624635]
[1693794407064,1.60201343,1634.0,1633.8,0.40624635]
[1693794407250,4.26005777,1634.0,1633.8,0.40624635]
[1693794407446,2.13003316,1633.9,1633.8,0.40624635]
[1693794407826,0.42600578,1633.9,1633.8,0.40624635]
[1693794408141,1.70402468,1633.9,1633.8,0.40624635]
[1693794408340,3.34531343,1634.0,1633.8,0.40624635]
[1693794410356,1.06322019,1633.9,1633.8,0.40624635]
[1693794410770,1.06321887,1633.9,1633.8,0.40624635]
[1693794411081,4.43231343,1634.0,1633.8,0.40624635]
[1693794411239,0.44323134,1633.9,1633.8,0.40624635]
[1693794413172,2.14725285,1633.9,1633.8,0.40624635]
[1693794413726,0.44323134,1633.9,1633.8,0.40624635]
[1693794413886,2.14725161,1633.9,1633.8,0.40624635]
[1693794414269,0.44323134,1633.9,1633.8,0.40624635]
[1693794414569,1.50644744,1633.9,1633.8,0.40624635]
[1693794414783,2.14725281,1633.9,1633.8,0.40624635]
[1693794415074,0.44323134,1633.9,1633.8,0.40624635]
[1693794415242,2.14725207,1633.9,1633.8,0.40624635]
[1693794415442,1.5064467,1633.9,1633.8,0.40624635]
[1693794415945,2.14725207,1633.9,1633.8,0.40624635]
[1693794417374,1.70402073,1633.9,1633.8,0.40624635]
[1693794418076,0.64080537,1633.9,1633.8,0.40624635]
[1693794423470,3.2988404,1633.9,1633.8,0.40624635]
[1693794423688,2.23562504,1633.9,1633.8,0.40624635]
[1693794425286,3.2988404,1633.9,1633.8,0.40624635]
[1693794428202,4.26004846,1633.9,1633.8,0.40624635]
[1693794429779,3.61924309,1633.9,1633.8,0.40624635]
[1693794431938,0.96120806,1633.9,1633.8,0.40624635]
[1693794432079,3.61924309,1633.9,1633.8,0.40624635]
[1693794432895,4.90085384,1633.9,1633.8,0.40624635]
[1693794433923,6.06608115,1633.9,1633.8,0.40624635]
[1693794440823,5.98325303,1633.9,1633.8,0.40624635]
[1693794443797,4.82055397,1633.9,1633.8,0.40624635]
[1693794447136,5.98325095,1633.9,1633.8,0.40624635]
[1693794447445,4.82074804,1633.9,1633.8,0.40624635]
[1693794447847,5.98325468,1633.9,1633.8,0.40624635]
[1693794454554,4.82107906,1633.9,1633.8,3.48810039]
[1693794454914,2.16304403,1633.9,1633.8,3.48810039]
[1693794455244,2.02747676,1633.9,1633.8,3.48810039]
[1693794455436,4.82107906,1633.9,1633.8,3.48810039]
[1693794455614,3.62229643,1633.9,1633.8,3.48810039]
[1693794455874,2.55894394,1633.9,1633.8,3.48810039]
[1693794461439,3.62211921,1633.9,1633.8,3.48810039]
[1693794478198,3.62211921,1633.9,1633.8,0.40624635]
[1693794478413,6.90779523,1633.9,1633.8,0.40624635]
[1693794478604,7.99479523,1633.9,1633.8,0.40624635]
[1693794478890,6.70922051,1633.9,1633.8,0.40624635]
[1693794481867,6.7098636,1633.9,1633.8,0.40624635]
[1693794482223,6.7098636,1633.9,1633.7,3.33468301]
[1693794482405,8.34729761,1633.8,1633.7,3.33468301]
[1693794482694,6.74101212,1633.8,1633.7,3.33468301]
[1693794486696,6.74101212,1633.8,1633.7,3.65557041]
[1693794489404,6.74101567,1633.8,1633.7,3.65557041]
[1693794489706,5.57731018,1633.8,1633.7,3.65557041]
[1693794490001,6.74101619,1633.8,1633.7,3.65557041]
[1693794490306,5.57729473,1633.8,1633.7,3.65557041]
[1693794496412,4.29226634,1633.8,1633.7,3.65557041]
[1693794499816,5.37926634,1633.8,1633.7,3.65557041]
[1693794502706,4.29226634,1633.8,1633.7,3.65557041]
[1693794508536,2.69691735,1633.8,1633.7,3.65557041]
[1693794508836,4.29192745,1633.8,1633.7,3.65557041]
[1693794511141,5.57538201,1633.8,1633.7,3.65557041]
[1693794514910,7.82649501,1633.8,1633.7,3.65557041]
[1693794518619,9.43081321,1633.8,1633.7,3.65557041]
[1693794521244,8.14735865,1633.8,1633.7,3.65557041]
[1693794521552,9.43138705,1633.8,1633.7,3.65557041]
[1693794522242,8.14735865,1633.8,1633.7,3.65557041]
[1693794523825,8.14735865,1633.8,1633.7,0.55557041]
[1693794527651,8.64304096,1633.8,1633.7,0.55557041]
[1693794533492,8.64304096,1633.8,1633.7,3.65557041]
[1693794540249,7.03872276,1633.8,1633.7,3.65557041]
[1693794552296,5.2807364,1633.8,1633.7,3.65557041]
[1693794552497,2.89067906,1633.8,1633.7,3.65557041]
[1693794552707,6.61239308,1633.8,1633.7,3.65557041]
[1693794552898,4.08789749,1633.8,1633.7,6.73742445]
[1693794553126,3.72171402,1633.8,1633.7,6.73742445]
[1693794553289,2.55860552,1633.8,1633.7,7.4111669]
[1693794558992,3.20067487,1633.8,1633.7,7.4111669]
[1693794559210,2.55860552,1633.8,1633.7,7.4111669]
[1693794559395,1.60566516,1633.8,1633.7,7.4111669]
[1693794559608,3.20067526,1633.8,1633.7,7.4111669]
[1693794561707,2.23707984,1633.8,1633.7,7.4111669]
[1693794566685,0.64206974,1633.8,1633.7,7.4111669]
[1693794568519,2.23693589,1633.8,1633.7,7.4111669]
[1693794569718,0.64206974,1633.8,1633.7,7.4111669]
[1693794576024,2.23695211,1633.8,1633.7,7.4111669]
[1693794577527,2.23695211,1633.8,1633.7,6.73742445]
[1693794578406,3.30019933,1633.8,1633.7,6.73742445]
[1693794590934,4.26379475,1633.8,1633.7,6.73742445]
[1693794593127,1.28395265,1633.8,1633.7,3.65557041]
[1693794593314,7.04510316,1633.8,1633.7,3.65557041]
[1693794594807,0.97644898,1633.8,1633.7,3.65557041]
[1693794594946,6.06899998,1633.8,1633.7,3.65557041]
[1693794595517,6.06899998,1633.8,1633.7,3.4208874]
[1693794596755,7.67400637,1633.8,1633.7,3.4208874]
[1693794597751,6.06899998,1633.8,1633.7,3.4208874]
[1693794597963,7.67400637,1633.8,1633.7,3.4208874]
[1693794603455,8.65039701,1633.8,1633.7,3.4208874]
[1693794604120,7.04539062,1633.8,1633.7,3.4208874]
[1693794614084,7.04572356,1633.8,1633.7,3.4208874]
[1693794616687,6.06933292,1633.8,1633.7,3.4208874]
[1693794616846,3.62153139,1633.8,1633.7,6.50274144]
[1693794617063,2.55817129,1633.8,1633.7,6.50274144]
[1693794621550,3.30048641,1633.8,1633.7,6.50274144]
[1693794621796,3.30048641,1633.8,1633.7,7.15301558]
[1693794622257,2.23712631,1633.8,1633.7,7.15301558]
[1693794626859,3.30048641,1633.8,1633.7,7.15301558]
[1693794627099,2.23712631,1633.8,1633.7,7.15301558]
[1693794630779,1.70544625,1633.8,1633.7,7.15301558]
[1693794630966,0.64208615,1633.8,1633.7,7.15301558]
[1693794635413,1.60521728,1633.9,1633.7,7.15301558]
[1693794635586,1.60521728,1633.9,1633.8,3.08185404]
[1693794635777,4.26323452,1633.9,1633.8,3.08185404]
[1693794636199,4.26323452,1633.9,1633.8,3.40196508]
[1693794637713,4.26323452,1633.9,1633.8,4.117189]
[1693794637894,3.30010339,1633.9,1633.8,4.117189]
[1693794638080,2.23689635,1633.9,1633.8,4.117189]
[1693794640621,3.30010339,1633.9,1633.8,4.117189]
[1693794650542,3.29983809,1633.9,1633.8,4.117189]
[1693794656851,4.26259063,1633.9,1633.8,4.117189]
[1693794660547,4.26345035,1633.9,1633.8,4.117189]
[1693794660849,3.62126471,1633.9,1633.8,4.117189]
[1693794663155,1.28437128,1634.0,1633.8,4.117189]
[1693794663156,0.64242333,1634.0,1633.8,4.117189]
[1693794663327,0.64242333,1634.0,1633.9,0.4117189]
[1693794663529,3.30009887,1634.0,1633.9,3.49357294]
[1693794663712,3.30009887,1634.0,1633.9,3.81407599]
[1693794664537,1.70549491,1634.0,1633.9,3.81407599]
[1693794665553,3.30010014,1634.0,1633.9,3.81407599]
[1693794666942,1.70549491,1634.0,1633.9,3.81407599]
[1693794671166,3.56460179,1634.1,1633.9,3.81407599]
[1693794671382,3.56460179,1634.1,1634.0,3.46326164]
[1693794671665,5.25901151,1634.1,1634.0,3.46326164]
[1693794671882,5.25901151,1634.1,1634.0,3.7829144]
[1693794674582,3.30011151,1634.1,1634.0,3.7829144]
[1693794675159,2.23703624,1634.1,1634.0,3.7829144]
[1693794675379,3.30011151,1634.1,1634.0,3.7829144]
[1693794676878,1.7054986,1634.1,1634.0,3.7829144]
[1693794677672,3.59900179,1634.2,1634.0,3.7829144]
[1693794678382,3.59900179,1634.2,1634.1,0.37829144]
[1693794678579,6.25661082,1634.2,1634.1,3.08185404]
[1693794680551,5.29333236,1634.2,1634.1,3.08185404]
[1693794683009,5.29333236,1634.2,1634.1,3.40083059]
[1693794692087,3.69876694,1634.2,1634.1,3.40083059]
[1693794692286,5.29330895,1634.2,1634.1,3.40083059]
[1693794694392,5.29330895,1634.2,1634.1,3.74091365]
[1693794695392,3.30000895,1634.2,1634.1,3.74091365]
[1693794695614,2.23696534,1634.2,1634.1,3.74091365]
[1693794696213,3.30000895,1634.2,1634.1,3.74091365]
[1693794696414,1.70546694,1634.2,1634.1,3.74091365]
[1693794697041,3.2999976,1634.2,1634.1,3.74091365]
[1693794703256,4.26327606,1634.2,1634.1,3.74091365]
[1693794704836,3.62085273,1634.2,1634.1,3.74091365]
[1693794718246,3.62085273,1634.2,1634.1,3.40083059]
[1693794725595,2.0305,1634.3,1634.1,3.40083059]
[1693794725782,0.82290296,1634.2,1634.1,0.31897655]
[1693794725950,2.41741475,1634.2,1634.1,0.31897655]
[1693794726177,3.48042261,1634.2,1633.8,4.47432324]
[1693794726388,3.30013701,1634.1,1633.9,0.44743232]
[1693794728211,3.30013701,1634.1,1634.0,0.31882819]
[1693794731079,3.30013701,1634.1,1634.0,3.40068223]
[1693794738929,3.30013701,1634.1,1634.0,0.31882819]
[1693794739131,7.15594364,1634.1,1634.0,0.31882819]
[1693794739444,8.23321171,1634.1,1633.7,3.1]
[1693794739594,0.64272132,1633.9,1633.8,3.08185404]
[1693794739942,3.30042454,1633.9,1633.8,3.08185404]
[1693794740403,1.70572918,1633.9,1633.8,3.08185404]
[1693794743339,4.7737033,1634.0,1633.8,3.40142968]
[1693794746346,5.4873234,1634.0,1633.8,3.40142968]
[1693794746527,4.52324142,1634.0,1633.8,3.40142968]
[1693794746721,4.52324142,1634.0,1633.8,0.31957564]
[1693794746914,4.70893121,1633.9,1633.8,0.31957564]
[1693794747207,7.15663383,1633.9,1633.8,0.31957564]
[1693794747407,7.14860307,1633.9,1633.8,0.31957564]
[1693794747634,5.86337341,1633.9,1633.8,0.31957564]
[1693794748034,7.14860307,1633.9,1633.8,0.31957564]
[1693794748220,5.86337341,1633.9,1633.8,0.31957564]
[1693794750246,6.50482778,1633.9,1633.8,0.31957564]
[1693794752490,5.5419727,1633.9,1633.8,0.31957564]
[1693794758595,3.2993036,1633.9,1633.8,3.40142968]
[1693794758763,1.70459406,1633.9,1633.8,3.40142968]
[1693794758951,4.77120945,1634.0,1633.8,3.40142968]
[1693794761032,5.26345081,1634.0,1633.8,3.40142968]
[1693794767292,1.06322019,1633.9,1633.8,3.40142968]
[1693794767595,1.70467456,1633.9,1633.8,3.40142968]
[1693794775605,3.29950123,1633.9,1633.8,3.40142968]
[1693794781410,4.26235631,1633.9,1633.8,3.40142968]
[1693794783385,3.62090194,1633.9,1633.8,3.40142968]
[1693794789501,4.9061316,1633.9,1633.8,3.40142968]
[1693794792354,6.06973826,1633.9,1633.8,3.40142968]
[1693794803098,6.06973826,1633.9,1633.8,4.05157265]
[1693794803633,5.00651807,1633.9,1633.8,4.05157265]
[1693794810974,2.55898244,1633.9,1633.8,4.05157265]
[1693794811346,0.96415577,1633.9,1633.8,4.05157265]
[1693794811606,3.62220263,1633.9,1633.8,4.05157265]
[1693794811773,2.55898244,1633.9,1633.8,4.05157265]
[1693794811947,3.62220263,1633.9,1633.8,4.05157265]
[1693794812148,2.55898244,1633.9,1633.8,4.05157265]
[1693794812953,4.26483055,1633.9,1633.8,4.05157265]
[1693794813159,3.20161036,1633.9,1633.8,4.05157265]
[1693794813757,2.23745459,1633.9,1633.8,4.1186086]
[1693794819061,3.30067478,1633.9,1633.8,4.1186086]
[1693794819489,2.23745459,1633.9,1633.8,4.1186086]
[1693794820795,1.70584811,1633.9,1633.8,4.1186086]
[1693794820990,0.64262792,1633.9,1633.8,4.1186086]
[1693794822278,1.70584811,1633.9,1633.8,4.1186086]
[1693794826772,1.06313196,1633.9,1633.8,4.1186086]
[1693794827506,3.72138369,1634.0,1633.8,4.1186086]
[1693794827507,2.75722792,1634.0,1633.8,4.1186086]
[1693794827680,2.75722792,1634.0,1633.9,3.08185404]
[1693794827880,5.41500217,1634.0,1633.9,3.08185404]
[1693794828110,5.41500217,1634.0,1633.9,3.3836921]
[1693794829425,6.37915794,1634.0,1633.9,3.3836921]
[1693794830286,5.41500217,1634.0,1633.9,3.3836921]
[1693794830670,1.70573762,1634.0,1633.9,3.72876491]